Workbook

Sheet 信息表
A1: 灌云县粮食烘干服务点信息表
A2: 序号 | B2: 烘干服务点主体名称（负责人姓名） | C2: 烘干机数量（台） | D2: 烘干总吨位（吨） | E2: 烘干方式 （循环式/连续式） | F2: 烘干机类型（固定式/移动式） | G2: 热源类型 | H2: 详细地址 | I2: 联系方式（手机号）
A3: 1 | B3: 灌云满之仓农业发展有限公司 | C3: 4 | D3: 80 | E3: 循环式 | F3: 固定式 | G3: 柴油、生物质颗粒 | H3: 灌云县小伊镇花厅村1组1号 | I3: 15366681081
A4: 2 | B4: 灌云县南岗镇东园村民委员会 | C4: 1 | D4: 120 | E4: 连续式 | F4: 固定式 | G4: 电热 | H4: 灌云县南岗镇东园村 | I4: 13961337211
A5: 3 | B5: 连云港秋耕生态种养农民专业合作社 | C5: 1 | D5: 120 | E5: 连续式 | F5: 固定式 | G5: 生物质颗粒 | H5: 灌云县南岗镇东于村南堤路 | I5: 15062941090
A6: 4 | B6: 滕友文 | C6: 4 | D6: 60 | E6: 循环式 | F6: 固定式 | G6: 煤 | H6: 灌云县侍庄乡厉荡村 | I6: 13236313258
A7: 5 | B7: 灌云晏金会农机专业合作社 | C7: 6 | D7: 130 | E7: 循环式 | F7: 固定式 | G7: 生物质颗粒 | H7: 灌云县侍庄乡乔圩村 | I7: 15396998080
A8: 6 | B8: 灌云朝阳农机专业合作社 | C8: 6 | D8: 120 | E8: 循环式 | F8: 固定式 | G8: 煤 | H8: 灌云县侍庄乡乔圩村 | I8: 15189045518
A9: 7 | B9: 灌云万有农机专业合作社 | C9: 4 | D9: 60 | E9: 循环式 | F9: 固定式 | G9: 煤 | H9: 灌云县伊山镇桃垛村桃垛组 | I9: 13961366859
A10: 8 | B10: 灌云永顺农机专业合作社 | C10: 4 | D10: 88 | E10: 循环式 | F10: 固定式 | G10: 生物质颗粒 | H10: 灌云县伊山镇任三庄村 | I10: 13775564396
A11: 9 | B11: 灌云庆丰农机专业合作社 | C11: 2 | D11: 30 | E11: 循环式 | F11: 固定式 | G11: 电 | H11: 灌云县伊山镇任庄村3组 | I11: 13905121707
A12: 10 | B12: 连云港市云辉种业有限公司 | C12: 8 | D12: 180 | E12: 循环式 | F12: 固定式 | G12: 油 | H12: 灌云县伊山镇朱韩村薄庄组 （伊山镇工业集中区） | I12: 13905120189
A13: 11 | B13: 灌云惠泽农机专业合作社 | C13: 2 | D13: 30 | E13: 循环式 | F13: 固定式 | G13: 燃煤 | H13: 灌云县东王集镇盐河村7组 | I13: 13815673555
A14: 12 | B14: 王培明 | C14: 2 | D14: 60 | E14: 循环式 | F14: 固定式 | G14: 生物质颗粒 | H14: 灌云县东王集镇直属村6组 | I14: 13812439875
A15: 13 | B15: 王永明 | C15: 3 | D15: 66 | E15: 循环式 | F15: 固定式 | G15: 生物质颗粒 | H15: 灌云县东王集镇韩圩村6组 | I15: 13179577588
A16: 14 | B16: 润和家庭农场 | C16: 2 | D16: 60 | E16: 循环式 | F16: 固定式 | G16: 电 | H16: 灌云县东王集镇韩圩村 | I16: 18936711888
A17: 15 | B17: 连云港晶丰种业有限公司 | C17: 2 | D17: 60 | E17: 循环式 | F17: 固定式 | G17: 生物质颗粒 | H17: 灌云县东王集镇韩圩村 | I17: 13337872628
A18: 16 | B18: 灌云金香源米业有限公司 | C18: 2 | D18: 70 | E18: 循环式 | F18: 固定式 | G18: 生物质颗粒 | H18: 灌云县东王集镇杨村2组 | I18: 15251206116
A19: 17 | B19: 焦加恩 | C19: 3 | D19: 30 | E19: 循环式 | F19: 固定式 | G19: 煤 | H19: 灌云县东王集镇黄杨村6组 | I19: 18251095000
A20: 18 | B20: 灌云县东王集镇武香雷稻麦种植家庭农场 | C20: 4 | D20: 60 | E20: 循环式 | F20: 固定式 | G20: 生物质颗粒 | H20: 灌云县东王集镇黄杨村2组 | I20: 18262769726
A21: 19 | B21: 灌云县东王集镇武香雷稻麦种植家庭农场 | C21: 4 | D21: 120 | E21: 循环式 | F21: 固定式 | G21: 生物质颗粒 | H21: 灌云县东王集镇直属村6组 | I21: 18262769726
A22: 20 | B22: 灌云友富粮油贸易公司 | C22: 4 | D22: 120 | E22: 循环式 | F22: 固定式 | G22: 稻壳 | H22: 灌云县东王集镇直属村6组 | I22: 13805122698
A23: 21 | B23: 灌云格林稻麦种植家庭农场 | C23: 4 | D23: 60 | E23: 循环式 | F23: 固定式 | G23: 燃煤 | H23: 灌云县杨集镇镇南村八组 | I23: 18761310552
A24: 22 | B24: 灌云华通农机专业合作社 | C24: 2 | D24: 70 | E24: 循环式 | F24: 固定式 | G24: 生物质颗粒 | H24: 灌云县杨集镇通榆村十一组 | I24: 13916265939
A25: 23 | B25: 灌云汇兴农机专业合作社 | C25: 8 | D25: 120 | E25: 循环式 | F25: 固定式 | G25: 生物质颗粒 | H25: 灌云县杨集镇新庄五组 | I25: 18351491888
A26: 24 | B26: 灌云中耀农机专业合作社 | C26: 1 | D26: 15 | E26: 循环式 | F26: 固定式 | G26: 生物质颗粒 | H26: 灌云县杨集镇春旭村小二庄118号 | I26: 19996677222
A27: 25 | B27: 王占成 | C27: 6 | D27: 132 | E27: 循环式 | F27: 固定式 | G27: 生物质颗粒 | H27: 灌云县杨集镇顺兴村 | I27: 13905120346
A28: 26 | B28: 王占成 | C28: 2 | D28: 180 | E28: 循环式 | F28: 固定式 | G28: 生物质颗粒 | H28: 灌云县杨集镇顺兴村 | I28: 13905120346
A29: 27 | B29: 潘俊洋 | C29: 1 | D29: 180 | E29: 连续式 | F29: 固定式 | G29: 生物质颗粒 | H29: 灌云县杨集镇镇北村 | I29: 19850627706
A30: 28 | B30: 灌云县利兴农机专业合作社 | C30: 15 | D30: 450 | E30: 循环式 | F30: 固定式 | G30: 生物质颗粒 | H30: 灌云县图河镇大兴沟村九组 | I30: 15861266266
A31: 29 | B31: 灌云成彦松农机专业合作社 | C31: 4 | D31: 80 | E31: 循环式 | F31: 固定式 | G31: 生物质颗粒 | H31: 灌云县燕尾港镇蔬菜场一组 | I31: 13092391322
A32: 30 | B32: 灌云刘井华农机专业合作社 | C32: 12 | D32: 180 | E32: 循环式 | F32: 固定式 | G32: 煤 | H32: 灌云县图河镇义民村四组 | I32: 13661411128
A33: 31 | B33: 灌云林三农机专业合作社 | C33: 2 | D33: 70 | E33: 循环式 | F33: 固定式 | G33: 生物质颗粒 | H33: 灌云县图河镇八道沟村四组 | I33: 13064972588
A34: 32 | B34: 灌云旭然农机专业合作社 | C34: 2 | D34: 40 | E34: 循环式 | F34: 固定式 | G34: 油 | H34: 灌云县圩丰镇尹场村六组 | I34: 15896111535
A35: 33 | B35: 灌云庆华农机专业合作社 | C35: 6 | D35: 120 | E35: 循环式 | F35: 固定式 | G35: 生物质颗粒 | H35: 灌云县圩丰镇周庄村一组 | I35: 13151727572
A36: 34 | B36: 灌云庆华农机专业合作社 | C36: 3 | D36: 45 | E36: 循环式 | F36: 固定式 | G36: 生物质颗粒 | H36: 灌云县圩丰镇周庄村一组 | I36: 13151727572
A37: 35 | B37: 灌云庆华农机专业合作社 | C37: 1 | D37: 300 | E37: 连续式 | F37: 固定式 | G37: 生物质颗粒 | H37: 灌云县圩丰镇周庄村一组 | I37: 13151727572
A38: 36 | B38: 灌云军士农机专业合作社 | C38: 3 | D38: 60 | E38: 循环式 | F38: 固定式 | G38: 生物质颗粒 | H38: 灌云县圩丰镇许庄村一组 | I38: 13179570546
A39: 37 | B39: 灌云耘耕农机专业合作社 | C39: 2 | D39: 70 | E39: 循环式 | F39: 固定式 | G39: 煤 | H39: 灌云县圩丰镇圩丰村圩八路北首 | I39: 13905133230
A40: 38 | B40: 灌云三张犁农机专业合作社 | C40: 3 | D40: 32 | E40: 循环式 | F40: 固定式 | G40: 油 | H40: 灌云县圩丰镇三张犁村五组012号 | I40: 15996108800
A41: 39 | B41: 灌云县圩丰镇粮食烘干中心 | C41: 10 | D41: 200 | E41: 循环式 | F41: 固定式 | G41: 生物质颗粒 | H41: 灌云县圩丰镇支沟村三组 | I41: 18912163303
A42: 40 | B42: 灌云中粮土地股份专业合作社 | C42: 4 | D42: 30 | E42: 循环式 | F42: 固定式 | G42: 生物质颗粒 | H42: 灌云县四队镇中南村 | I42: 18451192658 18795587519
A43: 41 | B43: 灌云北三土地股份专业合作社 | C43: 6 | D43: 120 | E43: 循环式 | F43: 固定式 | G43: 生物质颗粒 | H43: 灌云县四队镇双闸村 | I43: 15251200333
A44: 42 | B44: 灌云大农农机专业合作社 | C44: 10 | D44: 255 | E44: 循环式 | F44: 固定式 | G44: 生物质颗粒 | H44: 灌云县四队镇大东村 | I44: 18261353766
A45: 43 | B45: 灌云展凡农机专业合作社 | C45: 2 | D45: 46 | E45: 循环式 | F45: 固定式 | G45: 生物质颗粒 | H45: 灌云县四队镇街东村 | I45: 13851226102
A46: 44 | B46: 乔乃欢 | C46: 2 | D46: 46 | E46: 循环式 | F46: 固定式 | G46: 生物质颗粒 | H46: 灌云县四队镇鲁河村 | I46: 15251202005
A47: 45 | B47: 灌云县树玲谷物种植家庭农场 | C47: 1 | D47: 30 | E47: 循环式 | F47: 固定式 | G47: 生物质颗粒 | H47: 灌云县四队镇兴二村 | I47: 15950744913
A48: 46 | B48: 二队村集体 | C48: 1 | D48: 20 | E48: 循环式 | F48: 固定式 | G48: 生物质颗粒 | H48: 灌云县四队镇二队村 | I48: 13815672812
A49: 47 | B49: 刘恒志 | C49: 6 | D49: 180 | E49: 循环式 | F49: 固定式 | G49: 生物质颗粒 | H49: 灌云县四队镇鲁河村 | I49: 17751673077
A50: 48 | B50: 灌云李红祥农机专业合作社 | C50: 8 | D50: 112 | E50: 循环式 | F50: 固定式 | G50: 煤 | H50: 灌云县同兴镇兴高村圩北组 | I50: 18751246049
A51: 49 | B51: 灌云新辉稻麦种植专业合作社 | C51: 3 | D51: 99 | E51: 循环式 | F51: 固定式 | G51: 煤、生物颗粒 | H51: 灌云县同兴镇塘圩村九组 | I51: 15950767291
A52: 50 | B52: 灌云佑兴农机专业合作社 | C52: 1 | D52: 300 | E52: 连续式 | F52: 固定式 | G52: 生物质颗粒 | H52: 灌云县同兴镇同兴社区一组 | I52: 13675260888
A53: 51 | B53: 胡可桂 | C53: 2 | D53: 50 | E53: 循环式 | F53: 固定式 | G53: 生物质颗粒 | H53: 灌云县同兴镇金跳村七组 | I53: 13605122908
A54: 52 | B54: 张晓瑞 | C54: 4 | D54: 88 | E54: 循环式 | F54: 固定式 | G54: 煤、生物颗粒 | H54: 灌云县同兴镇张宝山村三组 | I54: 18751240783
A55: 53 | B55: 黄善美 | C55: 2 | D55: 60 | E55: 循环式 | F55: 固定式 | G55: 生物颗粒 | H55: 灌云县同兴镇头队村一组 | I55: 18261361768
A56: 54 | B56: 范守保 | C56: 2 | D56: 60 | E56: 循环式 | F56: 固定式 | G56: 生物颗粒 | H56: 灌云县同兴镇济永村七组 | I56: 13815673602
A57: 55 | B57: 连云港浩涛商贸有限公司 | C57: 6 | D57: 120 | E57: 循环式 | F57: 固定式 | G57: 生物颗粒 | H57: 灌云县同兴镇三川村刘东组 | I57: 18551019398
A58: 56 | B58: 灌云盛军土地股份专业合作社 | C58: 4 | D58: 60 | E58: 循环式 | F58: 固定式 | G58: 生物质颗粒 | H58: 灌云县下车镇下车村路西组 | I58: 15189046288
A59: 57 | B59: 灌云黄荡农机专业合作社 | C59: 4 | D59: 80 | E59: 循环式 | F59: 固定式 | G59: 煤电两用 | H59: 灌云县下车镇黄荡村十组 | I59: 13961353148
A60: 58 | B60: 灌云光阳农机专业合作社 | C60: 17 | D60: 356 | E60: 循环式 | F60: 固定式 | G60: 生物质颗粒 | H60: 灌云县下车镇费庄村大路南五组 | I60: 13961337748
A61: 59 | B61: 何维芝 | C61: 4 | D61: 80 | E61: 循环式 | F61: 固定式 | G61: 煤 | H61: 灌云县下车镇仲集村髙圩29号 | I61: 15152537555
A62: 60 | B62: 连云港市颂植米业有限公司 | C62: 6 | D62: 180 | E62: 循环式 | F62: 固定式 | G62: 生物质颗粒 | H62: 灌云县下车镇楼庄村白下路路东 | I62: 15501413555
A63: 61 | B63: 丁乃华 | C63: 7 | D63: 445 | E63: 循环式 | F63: 固定式 | G63: 煤加电 | H63: 灌云县下车镇长兴村蛮庄29号 | I63: 17702550910
A64: 62 | B64: 杨永富 | C64: 8 | D64: 120 | E64: 循环式 | F64: 固定式 | G64: 油 | H64: 灌云县下车镇仲集村204国道向南500米路西 | I64: 13675297018
A65: 63 | B65: 曹汝金 | C65: 2 | D65: 20 | E65: 循环式 | F65: 移动式 | G65: 生物质颗粒 | H65: 灌云县下车镇恒春村曹庄组11号 | I65: 18052335770
A66: 64 | B66: 灌云绿州稻麦种植家庭农场 | C66: 4 | D66: 48 | E66: 循环式 | F66: 固定式 | G66: 生物质颗粒 | H66: 灌云县龙苴镇龙苴村一组 | I66: 13961366230
A67: 65 | B67: 王帅 | C67: 4 | D67: 60 | E67: 循环式 | F67: 固定式 | G67: 生物质颗粒 | H67: 灌云县龙苴镇王荡村三组 | I67: 13812436400
A68: 66 | B68: 连云港优泰农业发展有限公司 | C68: 10 | D68: 550 | E68: 循环式 | F68: 固定式 | G68: 生物质颗粒 | H68: 灌云县龙苴镇吴南村穆新路一组 | I68: 18795549000
A69: 67 | B69: 灌云耕牛农机专业合作社 | C69: 2 | D69: 44 | E69: 循环式 | F69: 固定式 | G69: 煤 | H69: 灌云县龙苴镇穆圩二组 | I69: 17368105077
A70: 68 | B70: 灌云县颜庭明稻麦种植家庭农场 | C70: 4 | D70: 48 | E70: 循环式 | F70: 固定式 | G70: 煤 | H70: 灌云县龙苴镇青墩村一组 | I70: 18352810011
A71: 69 | B71: 范以娥 | C71: 3 | D71: 300 | E71: 连续式 | F71: 固定式 | G71: 煤 | H71: 灌云县龙苴镇乔荡一组 | I71: 15205138711
A72: 70 | B72: 孙壮 | C72: 1 | D72: 180 | E72: 连续式 | F72: 固定式 | G72: 油 | H72: 灌云县龙苴镇朱桥二组 | I72: 15205138711
A73: 71 | B73: 连云港德乾米业有限公司 | C73: 2 | D73: 180 | E73: 循环式 | F73: 固定式 | G73: 生物质颗粒 | H73: 灌云县龙苴下坊三组 | I73: 13905120853
A74: 72 | B74: 灌云成祥农机专业合作社 | C74: 6 | D74: 120 | E74: 循环式 | F74: 固定式 | G74: 生物质颗粒 | H74: 灌云县龙苴下坊11组 | I74: 15366687088
A75: 73 | B75: 灌云远峰农机专业合作社 | C75: 6 | D75: 120 | E75: 循环式 | F75: 固定式 | G75: 生物质颗粒 | H75: 灌云县龙苴下坊11组 | I75: 18360677351
C76: =SUM(C3:C75) -> 309 | D76: =SUM(D3:D75) -> 8675

Sheet 供参考
A1: “三夏”机械化生产应急作业机具准备情况烘干机数据（供参考）
A2: 序号 | B2: 设区市 | C2: 县（市、区） | D2: 烘干机（台、吨） | H2: 应急联系人
D3: 烘干机总台数 | E3: 烘干机总吨位 | F3: 其中 | H3: 应急联系人姓名 | I3: 应急联系人电话
F4: 移动烘干机台数 | G4: 移动烘干机总吨位
A5: 1 | B5: 南京市 | C5: 高淳区 | D5: 255 | E5: 3200 | F5: 0 | G5: 0 | H5: 陈慧超 | I5: 18362066569
C6: 六合区 | D6: 256 | E6: 4150 | F6: 4 | G6: 52 | H6: 瞿子岑 | I6: 02557122041
C7: 溧水区 | D7: 191 | E7: 3095 | F7: 0 | G7: 0 | H7: 黄海 | I7: 18851800998
C8: 江北新区 | D8: 0 | E8: 0 | F8: 0 | G8: 0 | H8: 刘威 | I8: 02557078154
C9: 栖霞区 | D9: 10 | E9: 192 | F9: 0 | G9: 0 | H9: 刘嘉俊 | I9: 15720601667
C10: 浦口区 | D10: 71 | E10: 1225 | F10: 0 | G10: 0 | H10: 徐硬 | I10: 58882805
C11: 江宁区 | D11: 151 | E11: 2894 | F11: 3 | G11: 28 | H11: 李照 | I11: 13585127861
C12: 全市小计 | D12: =SUM(D5:D11) -> 934 | E12: =SUM(E5:E11) -> 14756 | F12: =SUM(F5:F11) -> 7 | G12: =SUM(G5:G11) -> 80 | H12: 郑革 | I12: 68786093
A13: 2 | B13: 无锡市 | C13: 江阴市 | D13: 394 | E13: 6821 | F13: 0 | G13: 0 | H13: 孙镇 | I13: 13306167398
C14: 宜兴市 | D14: 691 | E14: 10691 | F14: 0 | G14: 0 | H14: 王辉 | I14: 87942338
C15: 锡山区 | D15: 83 | E15: 1325 | F15: 0 | G15: 0 | H15: 惠锋 | I15: 88252360
C16: 惠山区 | D16: 56 | E16: 834 | F16: 0 | G16: 0 | H16: 沈斐 | I16: 13961872128
C17: 滨湖区 | D17: 4 | E17: 80 | F17: 0 | G17: 0 | H17: 奚佳麟 | I17: 13921137959
C18: 新吴区 | D18: 16 | E18: 340 | F18: 0 | G18: 0 | H18: 叶海平 | I18: 81890966
C19: 全市小计 | D19: =SUM(D13:D18) -> 1244 | E19: =SUM(E13:E18) -> 20091 | F19: =SUM(F13:F18) -> 0 | G19: =SUM(G13:G18) -> 0 | H19: 李麟 | I19: 81827424
A20: 3 | B20: 徐州市 | C20: 丰 县 | D20: 170 | E20: 5775 | F20: 3 | G20: 53 | H20: 马行军 | I20: 15852210758
C21: 沛 县 | D21: 470 | E21: 12546 | F21: 3 | G21: 50 | H21: 陈宝林 | I21: 18952108887
C22: 睢宁县 | D22: 625 | E22: 13500 | F22: 2 | G22: 20 | H22: 傅达 | I22: 18251657026
C23: 新沂市 | D23: 480 | E23: 21000 | F23: 2 | G23: 25 | H23: 傅俊璋 | I23: 68802128
C24: 邳州市 | D24: 510 | E24: 14300 | F24: 3 | G24: 60 | H24: 姜新菊 | I24: 0516-86286670
C25: 铜山区 | D25: 541 | E25: 12667 | F25: 3 | G25: 50 | H25: 袁苏 | I25: 67078006
C26: 贾汪区 | D26: 88 | E26: 2600 | F26: 2 | G26: 30 | H26: 曹腾 | I26: 15705218081
C27: 泉山区 | D27: 0 | E27: 0 | F27: 0 | G27: 0 | H27: 刘胜 | I27: 18552823356
C28: 鼓楼区 | D28: 6 | E28: 180 | F28: 0 | G28: 0 | H28: 李彬 | I28: 13013958538
C29: 云龙区 | D29: 0 | E29: 0 | F29: 0 | G29: 0 | H29: 蔺佳旋 | I29: 17696529400
C30: 经开发 | D30: 14 | E30: 384 | F30: 0 | G30: 0 | H30: 张莹 | I30: 87735578
C31: 港务区 | D31: 30 | E31: 602 | F31: 0 | G31: 0 | H31: 刘胜 | I31: 18552823356
C32: 全市小计 | D32: =SUM(D20:D31) -> 2934 | E32: =SUM(E20:E31) -> 83554 | F32: =SUM(F20:F31) -> 18 | G32: =SUM(G20:G31) -> 288 | H32: 侯兆安 | I32: 13705201098
A33: 4 | B33: 常州市 | C33: 金坛区 | D33: 359 | E33: 6185 | F33: 0 | G33: 0 | H33: 张炜 | I33: 13511668130
C34: 武进区 | D34: 110 | E34: 1200 | F34: 0 | G34: 0 | H34: 吴科军 | I34: 13961251512
C35: 新北区 | D35: 134 | E35: 2010 | F35: 1 | G35: 10 | H35: 丁德广 | I35: 18651212266
C36: 天宁区 | D36: 7 | E36: 112 | F36: 0 | G36: 0 | H36: 徐广 | I36: 15995026363
C37: 钟楼区 | D37: 4 | E37: 60 | F37: 0 | G37: 0 | H37: 潘峰 | I37: 13961216716
C38: 经开区 | D38: 14 | E38: 230 | F38: 0 | G38: 0 | H38: 闵程峰 | I38: 0519-88589818
C39: 溧阳市 | D39: 850 | E39: 17000 | F39: 0 | G39: 0 | H39: 葛惠兴 | I39: 0519-87808010
C40: 全市小计 | D40: =SUM(D33:D39) -> 1478 | E40: =SUM(E33:E39) -> 26797 | F40: =SUM(F33:F39) -> 1 | G40: =SUM(G33:G39) -> 10 | H40: 顾加红 | I40: 13861259328
A41: 5 | B41: 苏州市 | C41: 张家港市 | D41: 403 | E41: 6027 | F41: 0 | G41: 0 | H41: 赵占春 | I41: 0512-58352508
C42: 常熟市 | D42: 543 | E42: 7097 | F42: 0 | G42: 0 | H42: 邓文军 | I42: 13962480645
C43: 太仓市 | D43: 354 | E43: 4418 | F43: 0 | G43: 0 | H43: 金惠强 | I43: 13776190002
C44: 昆山市 | D44: 207 | E44: 3214 | F44: 0 | G44: 0 | H44: 陈丽峰 | I44: 13962433221
C45: 吴江区 | D45: 228 | E45: 3183 | F45: 0 | G45: 0 | H45: 张辉 | I45: 0512-63190197
C46: 吴中区 | D46: 65 | E46: 838 | F46: 0 | G46: 0 | H46: 徐晓丽 | I46: 18915736439
C47: 相城区 | D47: 61 | E47: 1015 | F47: 0 | G47: 0 | H47: 王建忠 | I47: 18550273312
C48: 高新区 | D48: 33 | E48: 514 | F48: 0 | G48: 0 | H48: 王静波 | I48: 0512-68220391
C49: 全市小计 | D49: =SUM(D41:D48) -> 1894 | E49: =SUM(E41:E48) -> 26306 | F49: =SUM(F41:F48) -> 0 | G49: =SUM(G41:G48) -> 0 | H49: 赵赟 | I49: 15850009520
A50: 6 | B50: 南通市 | C50: 海安市 | D50: 1404 | E50: 21220 | F50: 2 | G50: 20 | H50: 杨进 | I50: 13773685058
C51: 如皋市 | D51: 991 | E51: 20674 | F51: 0 | G51: 0 | H51: 薛永红 | I51: 87514432
C52: 如东县 | D52: 1751 | E52: 30329 | F52: 0 | G52: 0 | H52: 符小军 | I52: 18206277111
C53: 启东市 | D53: 288 | E53: 4641 | F53: 1 | G53: 10 | H53: 龚 飙 | I53: 18912222468
C54: 通州区 | D54: 757 | E54: 11843 | F54: 0 | G54: 0 | H54: 金海涛 | I54: 18068986600
C55: 海门区 | D55: 277 | E55: 4591 | F55: 3 | G55: 36 | H55: 曹亮 | I55: 0513-82211779
C56: 全市小计 | D56: =SUM(D50:D55) -> 5468 | E56: =SUM(E50:E55) -> 93298 | F56: =SUM(F50:F55) -> 6 | G56: =SUM(G50:G55) -> 66 | H56: 黄莉 | I56: 59002351
A57: 7 | B57: 连云港市 | C57: 东海县 | D57: 487 | E57: 15945 | F57: 2 | G57: 60 | H57: 沈军 | I57: 13585280049
C58: 灌云县 | D58: 339 | E58: 8082 | F58: 2 | G58: 20 | H58: 方建 | I58: 13905122039
C59: 灌南县 | D59: 345 | E59: 6007 | F59: 0 | G59: 0 | H59: 贾月楼 | I59: 13851258877
C60: 赣榆区 | D60: 289 | E60: 8352 | F60: 3 | G60: 60 | H60: 杜传锟 | I60: 13585297099
C61: 海州区 | D61: 144 | E61: 5756 | F61: 0 | G61: 0 | H61: 张晗 | I61: 0518-85210821
C62: 徐圩新区 | D62: 10 | E62: 240 | F62: 0 | G62: 0 | H62: 苗方圆 | I62: 18994508703
C63: 云台街道 | D63: 1 | E63: 20 | F63: 0 | G63: 0 | H63: 周子越 | I63: 19351857530
C64: 连云区 | D64: 0 | E64: 0 | F64: 0 | G64: 0 | H64: 王瑞 | I64: 17851221289
C65: 全市小计 | D65: =SUM(D57:D64) -> 1615 | E65: =SUM(E57:E64) -> 44402 | F65: =SUM(F57:F64) -> 7 | G65: =SUM(G57:G64) -> 140 | H65: 周锦涛 | I65: 15161300770
A66: 8 | B66: 淮安市 | C66: 清江浦区 | D66: 68 | E66: 1020 | H66: 左渊 | I66: 051789002292
C67: 淮安区 | D67: 600 | E67: 9000 | F67: 1 | G67: 5 | H67: 杨卫新 | I67: 13605230633
C68: 淮阴区 | D68: 151 | E68: 2465 | H68: 邹劲松 | I68: 15950386789
C69: 洪泽区 | D69: 510 | E69: 8642 | F69: 0 | G69: 0 | H69: 陶倩 | I69: 17826610080
C70: 涟水县 | D70: 690 | E70: 10350 | F70: 6 | G70: 90 | H70: 徐勤坚 | I70: 13952393366
C71: 盱眙县 | D71: 658 | E71: 18000 | F71: 21 | G71: 250 | H71: 王志伟 | I71: 18762077380
C72: 金湖县 | D72: 308 | E72: 9191 | F72: 2 | G72: 8 | H72: 吴子文 | I72: 15905232118
C73: 全市小计 | D73: 2985 | E73: 58668 | F73: 30 | G73: 353 | H73: 郑俊 | I73: 13952308953
A74: 9 | B74: 盐城市 | C74: 亭湖区 | D74: 321 | E74: 7919 | F74: 0 | G74: 0 | H74: 李伟 | I74: 15050650869
C75: 盐都区 | D75: 524 | E75: 10602 | H75: 葛亚辉 | I75: 18905106070
C76: 大丰区 | D76: 1215 | E76: 32216 | F76: 0 | G76: 0 | H76: 杨大双 | I76: 15371175789
C77: 东台市 | D77: 821 | E77: 15235 | F77: 9 | G77: 130 | H77: 陈辰 | I77: 18862021298
C78: 建湖县 | D78: 772 | E78: 17505 | F78: 7 | G78: 145 | H78: 谈仁玉 | I78: 18112056036
C79: 阜宁县 | D79: 515 | E79: 12050 | F79: 3 | G79: 30 | H79: 余洲 | I79: 13815526038
C80: 滨海县 | D80: 795 | E80: 17584 | F80: 1 | G80: 5 | H80: 张海林 | I80: 13815514208
C81: 响水县 | D81: 285 | E81: 21830 | F81: 0 | G81: 0 | H81: 孙强 | I81: 18260300882
C82: 射阳县 | D82: 1575 | E82: 38360 | F82: 2 | G82: 20 | H82: 于盈盈 | I82: 82328921
C83: 全市小计 | D83: =SUM(D74:D82) -> 6823 | E83: =SUM(E74:E82) -> 173301 | F83: =SUM(F74:F82) -> 22 | G83: =SUM(G74:G82) -> 330 | H83: 张尊忠 | I83: 18961999196
A84: 10 | B84: 扬州市 | C84: 宝应县 | D84: 614 | E84: 15102 | F84: 0 | G84: 0 | H84: 徐徐 | I84: 15952532481
C85: 高邮市 | D85: 973 | E85: 16351 | F85: 1 | G85: 4 | H85: 贾海涛 | I85: 051484612531
C86: 仪征市 | D86: 278 | E86: 5137 | F86: 2 | G86: 20 | H86: 姜亦涵 | I86: 13952791428
C87: 江都区 | D87: 1000 | E87: 22048 | F87: 1 | G87: 10 | H87: 凌建松 | I87: 86552109
C88: 邗江区 | D88: 83 | E88: 2523 | F88: 0 | G88: 0 | H88: 吕金华 | I88: 87862399
C89: 广陵区 | D89: 27 | E89: 785 | F89: 0 | G89: 0 | H89: 钱佳慧 | I89: 18052597171
C90: 全市小计 | D90: =SUM(D84:D89) -> 2975 | E90: =SUM(E84:E89) -> 61946 | F90: =SUM(F84:F89) -> 4 | G90: =SUM(G84:G89) -> 34 | H90: 邓昕 | I90: 18005275226
A91: 11 | B91: 镇江市 | C91: 丹阳市 | D91: 600 | E91: 11000 | F91: 0 | G91: 0 | H91: 张春阳 | I91: 13852939529
C92: 句容市 | D92: 237 | E92: 4369 | F92: 1 | G92: 15 | H92: 朱怡慧 | I92: 15050593575
C93: 扬中市 | D93: 60 | E93: 1125 | F93: 1 | G93: 20 | H93: 朱凌 | I93: 18118956708
C94: 丹徒区 | D94: 198 | E94: 3148 | F94: 0 | G94: 0 | H94: 骆万林 | I94: 80290857
C95: 京口区 | D95: 40 | E95: 600 | F95: 0 | G95: 0 | H95: 成大宇 | I95: 80871577
C96: 润州区 | D96: 3 | E96: 45 | F96: 0 | G96: 0 | H96: 陈帅 | I96: 18015263623
C97: 经开区 | D97: 116 | E97: 1970 | F97: 0 | G97: 0 | H97: 闫发宝 | I97: 15706175070
C98: 全市小计 | D98: =SUM(D91:D97) -> 1254 | E98: =SUM(E91:E97) -> 22257 | F98: =SUM(F91:F97) -> 2 | G98: =SUM(G91:G97) -> 35 | H98: 王成 | I98: 13952880369
A99: 12 | B99: 泰州市 | C99: 靖江市 | D99: 363 | E99: 7671 | F99: 0 | G99: 0 | H99: 林敏 | I99: 13357795396
C100: 泰兴市 | D100: 810 | E100: 11830 | F100: 0 | G100: 0 | H100: 许季航 | I100: 17701445061
C101: 兴化市 | D101: 1560 | E101: 28900 | F101: 2 | G101: 20 | H101: 贺春玉 | I101: 13815918878
C102: 姜堰区 | D102: 1009 | E102: 16150 | F102: 1 | G102: 20 | H102: 缪昌根 | I102: 13852657897
C103: 海陵区 | D103: 186 | E103: 3921 | F103: 0 | G103: 0 | H103: 曹阳 | I103: 13402135528
C104: 新高区 | D104: 126 | E104: 2012 | F104: 0 | G104: 0 | H104: 赵荣 | I104: 052386964799
C105: 全市小计 | D105: =D99+D100+D101+D102+D103+D104 -> 4054 | E105: =E99+E100+E101+E102+E103+E104 -> 70484 | F105: =F99+F100+F101+F102+F103+F104 -> 3 | G105: =G99+G100+G101+G102+G103+G104 -> 40 | H105: 熊伟 | I105: 052386893965
A106: 13 | B106: 宿迁市 | C106: 沭阳县 | D106: 352 | E106: 7815 | F106: 0 | G106: 0 | H106: 李淮阳 | I106: 15751094783
C107: 泗阳县 | D107: 329 | E107: 9245 | F107: 22 | G107: 132 | H107: 王凯 | I107: 18936930990
C108: 泗洪县 | D108: 408 | E108: 17449 | F108: 10 | G108: 75 | H108: 朱波 | I108: 052782618688
C109: 宿豫区 | D109: 274 | E109: 5480 | H109: 刘钧 | I109: 84466858
C110: 宿城区 | D110: 115 | E110: 3546 | F110: 4 | G110: 60 | H110: 张保利 | I110: 15052708188
C111: 经开区 | D111: 0 | E111: 802 | G111: 0 | H111: 徐洲 | I111: 13951195996
C112: 湖滨新区 | D112: 4 | E112: 30 | H112: 罗金娜 | I112: 19805286238
C113: 洋河新区 | D113: 10 | E113: 700 | F113: 0 | G113: 0 | H113: 武好 | I113: 1599628792
C114: 全市小计 | D114: =SUM(D106:D113) -> 1492 | E114: =SUM(E106:E113) -> 45067 | F114: =SUM(F106:F113) -> 36 | G114: =SUM(G106:G113) -> 267 | H114: 王健 | I114: 13852820677
A115: 全省总计 | D115: =SUM(D5:D114)/2 -> 35150 | E115: =SUM(E5:E114)/2 -> 740927 | F115: =SUM(F5:F114)/2 -> 136 | G115: =SUM(G5:G114)/2 -> 1643 | H115: 谢建水 | I115: 13815880598
